[Event "*** Titled Tuesday Blitz"]
[Site "Chess.com"]
[Date "2019.04.02"]
[Round "1"]
[White "Durarbayli"]
[Black "francogreek"]
[Result "1-0"]
[WhiteElo "2758"]
[BlackElo "2424"]
[TimeControl "180+2"]
[EndTime "14:07:04 PDT"]
[Termination "Durarbayli won by resignation"]

1. e4 {[%clk 0:02:55.7]} 1... c5 {[%clk 0:02:58.5]} 2. Nf3 {[%clk 0:02:56.3]}
2... d6 {[%clk 0:02:58.5]} 3. d4 {[%clk 0:02:55.6]} 3... cxd4 {[%clk 0:03:00.4]}
4. Nxd4 {[%clk 0:02:55.9]} 4... Nf6 {[%clk 0:03:01.8]} 5. Nc3 {[%clk 0:02:55.5]}
5... g6 {[%clk 0:03:00]} 6. Be3 {[%clk 0:02:55.9]} 6... a6 {[%clk 0:03:00.9]} 7.
f3 {[%clk 0:02:49.4]} 7... b5 {[%clk 0:03:01.4]} 8. Qd2 {[%clk 0:02:50.7]} 8...
Bb7 {[%clk 0:03:01.8]} 9. O-O-O {[%clk 0:02:45]} 9... Nbd7 {[%clk 0:03:02]} 10.
Kb1 {[%clk 0:02:45.8]} 10... b4 {[%clk 0:02:58.4]} 11. Nd5 {[%clk 0:02:41.4]}
11... Nxd5 {[%clk 0:02:49.2]} 12. exd5 {[%clk 0:02:42.3]} 12... Bxd5 {[%clk
0:02:50.4]} 13. Qxb4 {[%clk 0:02:31.1]} 13... Bg7 {[%clk 0:02:42.9]} 14. Bc4
{[%clk 0:02:29.2]} 14... Rb8 {[%clk 0:02:38.7]} 15. Qa4 {[%clk 0:02:15.2]} 15...
Bxc4 {[%clk 0:02:28.8]} 16. Qxc4 {[%clk 0:02:17.1]} 16... O-O {[%clk 0:02:30.5]}
17. b3 {[%clk 0:02:03.8]} 17... a5 {[%clk 0:02:24.9]} 18. Nc6 {[%clk 0:02:00.8]}
18... Qe8 {[%clk 0:02:18.8]} 19. Nxb8 {[%clk 0:01:59.9]} 19... Qxb8 {[%clk
0:02:20.7]} 20. Bd4 {[%clk 0:02:00.6]} 20... Ne5 {[%clk 0:02:20.9]} 21. Qe2
{[%clk 0:01:44.6]} 21... a4 {[%clk 0:02:20.1]} 22. f4 {[%clk 0:01:43.9]} 22...
Nc6 {[%clk 0:02:17.9]} 23. Bxg7 {[%clk 0:01:42.9]} 23... Kxg7 {[%clk 0:02:19.8]}
24. h4 {[%clk 0:01:39]} 24... h5 {[%clk 0:02:17.7]} 25. g4 {[%clk 0:01:37.8]}
25... hxg4 {[%clk 0:02:18.8]} 26. h5 {[%clk 0:01:38.9]} 26... a3 {[%clk
0:02:15.6]} 27. hxg6 {[%clk 0:01:37.7]} 27... fxg6 {[%clk 0:02:15.9]} 28. Qxg4
{[%clk 0:01:37.2]} 28... Qb4 {[%clk 0:02:11.4]} 29. Qh3 {[%clk 0:01:15.7]} 29...
Kf7 {[%clk 0:01:56]} 30. Qh7+ {[%clk 0:01:14.2]} 30... Ke8 {[%clk 0:01:57]} 31.
Qxg6+ {[%clk 0:01:15.1]} 31... Kd8 {[%clk 0:01:58.3]} 32. Qg7 {[%clk 0:01:11.6]}
32... Rxf4 {[%clk 0:01:55]} 33. Rhe1 {[%clk 0:00:58.6]} 33... Rf2 {[%clk
0:01:33.9]} 34. Rf1 {[%clk 0:00:45.1]} 34... Qd2 {[%clk 0:01:24]} 35. Qf8+
{[%clk 0:00:34.3]} 35... Kc7 {[%clk 0:01:06.1]} 36. Rxd2 {[%clk 0:00:31.8]} 1-0

[Event "*** Titled Tuesday Blitz"]
[Site "Chess.com"]
[Date "2019.04.02"]
[Round "1"]
[White "vugarrasulov"]
[Black "bugsbunny444"]
[Result "1-0"]
[WhiteElo "2866"]
[BlackElo "2476"]
[TimeControl "180+2"]
[EndTime "14:07:10 PDT"]
[Termination "vugarrasulov won by resignation"]

1. e4 {[%clk 0:03:01.9]} 1... e6 {[%clk 0:02:56.7]} 2. d4 {[%clk 0:03:02.2]}
2... d5 {[%clk 0:02:57.5]} 3. Nd2 {[%clk 0:03:03]} 3... Nf6 {[%clk 0:02:58.1]}
4. e5 {[%clk 0:03:03.5]} 4... Nfd7 {[%clk 0:02:59.4]} 5. Bd3 {[%clk 0:03:01.6]}
5... c5 {[%clk 0:03:00.3]} 6. c3 {[%clk 0:03:02.9]} 6... Nc6 {[%clk 0:03:01.3]}
7. Ne2 {[%clk 0:03:04]} 7... cxd4 {[%clk 0:03:02]} 8. cxd4 {[%clk 0:03:05.9]}
8... f6 {[%clk 0:03:03]} 9. exf6 {[%clk 0:03:07.1]} 9... Nxf6 {[%clk 0:03:04.2]}
10. Nf3 {[%clk 0:03:08.2]} 10... Bd6 {[%clk 0:03:05.2]} 11. O-O {[%clk
0:03:09.1]} 11... O-O {[%clk 0:03:05.9]} 12. Bf4 {[%clk 0:03:09.7]} 12... Bxf4
{[%clk 0:03:06.5]} 13. Nxf4 {[%clk 0:03:11.6]} 13... Qd6 {[%clk 0:03:07.3]} 14.
Ne2 {[%clk 0:03:05]} 14... g6 {[%clk 0:03:03.8]} 15. Ng3 {[%clk 0:03:02.9]}
15... Qb4 {[%clk 0:03:04.2]} 16. Qc2 {[%clk 0:02:40]} 16... Nxd4 {[%clk
0:02:50.4]} 17. Nxd4 {[%clk 0:02:41.9]} 17... Qxd4 {[%clk 0:02:51.6]} 18. Rad1
{[%clk 0:02:31.7]} 18... Qf4 {[%clk 0:02:37.8]} 19. Ne2 {[%clk 0:02:27]} 19...
Qd6 {[%clk 0:02:20.7]} 20. Bxg6 {[%clk 0:02:19.4]} 20... e5 {[%clk 0:02:07]} 21.
Bf5 {[%clk 0:02:18.8]} 21... Kh8 {[%clk 0:01:50]} 22. Ng3 {[%clk 0:02:18.3]}
22... Qc6 {[%clk 0:01:22.4]} 23. Qe2 {[%clk 0:02:11.6]} 23... e4 {[%clk
0:01:19.9]} 24. Qe3 {[%clk 0:02:08.1]} 24... Qb6 {[%clk 0:01:19.1]} 25. Qh6
{[%clk 0:02:00.9]} 25... Bxf5 {[%clk 0:01:05.5]} 26. Nxf5 {[%clk 0:02:02.8]}
26... Rf7 {[%clk 0:00:59.6]} 27. b3 {[%clk 0:02:02.1]} 27... Rg8 {[%clk
0:00:57.6]} 28. Qe3 {[%clk 0:01:52.1]} 28... Rd8 {[%clk 0:00:30.9]} 29. Qxb6
{[%clk 0:01:42.5]} 29... axb6 {[%clk 0:00:32.8]} 30. f3 {[%clk 0:01:37]} 30...
exf3 {[%clk 0:00:23.1]} 31. Rxf3 {[%clk 0:01:38.9]} 31... Ne4 {[%clk 0:00:24.5]}
32. Nh6 {[%clk 0:01:38.2]} 32... Rxf3 {[%clk 0:00:16.2]} 33. gxf3 {[%clk
0:01:40.1]} 33... Nc3 {[%clk 0:00:06.7]} 34. Rd3 {[%clk 0:01:34.4]} 34... Rc8
{[%clk 0:00:07.1]} 35. Nf7+ {[%clk 0:01:34.3]} 35... Kg7 {[%clk 0:00:08.6]} 36.
Nd6 {[%clk 0:01:35.4]} 36... Rc7 {[%clk 0:00:06.9]} 37. Ne8+ {[%clk 0:01:36.2]}
1-0

[Event "*** Titled Tuesday Blitz"]
[Site "Chess.com"]
[Date "2019.04.02"]
[Round "1"]
[White "DanielMieles1985"]
[Black "mlchen"]
[Result "1-0"]
[WhiteElo "2700"]
[BlackElo "2383"]
[TimeControl "180+2"]
[EndTime "14:07:14 PDT"]
[Termination "DanielMieles1985 won by resignation"]

1. d4 {[%clk 0:03:01.9]} 1... Nf6 {[%clk 0:03:00.9]} 2. c4 {[%clk 0:03:03]} 2...
e6 {[%clk 0:03:02.4]} 3. Nc3 {[%clk 0:03:04]} 3... Bb4 {[%clk 0:03:02]} 4. Qc2
{[%clk 0:03:05]} 4... O-O {[%clk 0:03:01.5]} 5. e4 {[%clk 0:03:05.8]} 5... Bxc3+
{[%clk 0:02:52.8]} 6. bxc3 {[%clk 0:03:05.9]} 6... d5 {[%clk 0:02:53.5]} 7. e5
{[%clk 0:03:03.4]} 7... Nfd7 {[%clk 0:02:49.8]} 8. cxd5 {[%clk 0:03:01.3]} 8...
exd5 {[%clk 0:02:50.2]} 9. Bd3 {[%clk 0:03:02.7]} 9... h6 {[%clk 0:02:50.7]} 10.
Nf3 {[%clk 0:03:02.6]} 10... c5 {[%clk 0:02:47.2]} 11. O-O {[%clk 0:03:02.1]}
11... Nc6 {[%clk 0:02:47.7]} 12. a3 {[%clk 0:02:54.1]} 12... Re8 {[%clk
0:02:30.4]} 13. Re1 {[%clk 0:02:53.4]} 13... b6 {[%clk 0:02:26.9]} 14. Bf4
{[%clk 0:02:48.9]} 14... Nf8 {[%clk 0:02:25.2]} 15. h3 {[%clk 0:02:45.1]} 15...
Ne6 {[%clk 0:02:25.6]} 16. Be3 {[%clk 0:02:44.2]} 16... Bd7 {[%clk 0:02:22.7]}
17. Rad1 {[%clk 0:02:41.7]} 17... Rc8 {[%clk 0:02:22.1]} 18. Qa2 {[%clk
0:02:42.4]} 18... c4 {[%clk 0:02:16.3]} 19. Bb1 {[%clk 0:02:42.4]} 19... Na5
{[%clk 0:02:16.8]} 20. Qc2 {[%clk 0:02:42.4]} 20... Nf8 {[%clk 0:02:09.3]} 21.
Nh2 {[%clk 0:02:39.2]} 21... Qe7 {[%clk 0:02:06.4]} 22. Bc1 {[%clk 0:02:29.5]}
22... Nb3 {[%clk 0:02:01.5]} 23. Ng4 {[%clk 0:02:26]} 23... Ba4 {[%clk
0:01:52.2]} 24. Bxh6 {[%clk 0:02:01]} 24... gxh6 {[%clk 0:01:02.5]} 25. Nf6+
{[%clk 0:02:00.4]} 25... Kh8 {[%clk 0:01:01.1]} 26. Re3 {[%clk 0:01:45.7]} 26...
Ng6 {[%clk 0:00:51.3]} 27. Rg3 {[%clk 0:01:46.3]} 27... Bd7 {[%clk 0:00:34.6]}
28. h4 {[%clk 0:01:31.9]} 28... h5 {[%clk 0:00:17.4]} 29. Qe2 {[%clk 0:01:22.8]}
29... Bg4 {[%clk 0:00:10.1]} 30. Qe3 {[%clk 0:01:15.2]} 30... Kg7 {[%clk
0:00:09.7]} 31. f3 {[%clk 0:01:05.8]} 31... Be6 {[%clk 0:00:07.9]} 32. Nxh5+
{[%clk 0:01:05]} 32... Kf8 {[%clk 0:00:08.5]} 33. Qh6+ {[%clk 0:01:05.2]} 1-0

[Event "*** Titled Tuesday Blitz"]
[Site "Chess.com"]
[Date "2019.04.02"]
[Round "1"]
[White "SlavenPastar"]
[Black "RayRobson"]
[Result "0-1"]
[WhiteElo "2473"]
[BlackElo "2866"]
[TimeControl "180+2"]
[EndTime "14:07:18 PDT"]
[Termination "RayRobson won by resignation"]

1. e4 {[%clk 0:03:00]} 1... e5 {[%clk 0:03:00.1]} 2. Nc3 {[%clk 0:03:01.5]} 2...
Nc6 {[%clk 0:03:01]} 3. Nf3 {[%clk 0:03:02.1]} 3... Nf6 {[%clk 0:03:00.7]} 4.
Bb5 {[%clk 0:03:02.3]} 4... Nd4 {[%clk 0:03:01.5]} 5. Bd3 {[%clk 0:03:02.2]}
5... Nxf3+ {[%clk 0:02:42.5]} 6. Qxf3 {[%clk 0:03:01.2]} 6... d6 {[%clk
0:02:42.5]} 7. h3 {[%clk 0:03:01.8]} 7... Be7 {[%clk 0:02:43.1]} 8. O-O {[%clk
0:03:02.8]} 8... O-O {[%clk 0:02:44.1]} 9. b3 {[%clk 0:02:51.8]} 9... c6 {[%clk
0:02:42.6]} 10. Re1 {[%clk 0:02:51.7]} 10... b5 {[%clk 0:02:29.6]} 11. a3 {[%clk
0:02:24.9]} 11... a6 {[%clk 0:02:17.9]} 12. Bb2 {[%clk 0:02:25.2]} 12... Bb7
{[%clk 0:02:16.1]} 13. b4 {[%clk 0:02:23.5]} 13... c5 {[%clk 0:02:10]} 14. Nd5
{[%clk 0:02:15]} 14... Nxd5 {[%clk 0:02:04.3]} 15. exd5 {[%clk 0:02:15.8]} 15...
c4 {[%clk 0:02:04.8]} 16. Be4 {[%clk 0:02:11.9]} 16... g6 {[%clk 0:02:00.8]} 17.
g4 {[%clk 0:02:12.8]} 17... Qd7 {[%clk 0:01:51]} 18. Qg2 {[%clk 0:02:10.2]}
18... Bg5 {[%clk 0:01:44.7]} 19. d4 {[%clk 0:02:02.6]} 19... cxd3 {[%clk
0:01:26.5]} 20. cxd3 {[%clk 0:01:55.2]} 20... Rac8 {[%clk 0:01:24.9]} 21. d4
{[%clk 0:01:56.2]} 21... Bf4 {[%clk 0:01:19.6]} 22. Rad1 {[%clk 0:01:44.6]}
22... f6 {[%clk 0:01:04.1]} 23. dxe5 {[%clk 0:01:14.9]} 23... fxe5 {[%clk
0:01:04.7]} 24. Bc1 {[%clk 0:01:13.9]} 24... Rc4 {[%clk 0:00:57.1]} 25. Be3
{[%clk 0:01:03.5]} 25... Qf7 {[%clk 0:00:50.6]} 26. Rc1 {[%clk 0:00:49.6]} 26...
Bxe3 {[%clk 0:00:38.8]} 27. fxe3 {[%clk 0:00:48.4]} 27... Rxe4 {[%clk
0:00:37.8]} 28. Qxe4 {[%clk 0:00:45.7]} 28... Qf2+ {[%clk 0:00:35.5]} 29. Kh1
{[%clk 0:00:46.2]} 29... Rf3 {[%clk 0:00:36.5]} 0-1

[Event "*** Titled Tuesday Blitz"]
[Site "Chess.com"]
[Date "2019.04.02"]
[Round "1"]
[White "Grischuk"]
[Black "Aemulus20"]
[Result "1-0"]
[WhiteElo "3069"]
[BlackElo "2500"]
[TimeControl "180+2"]
[EndTime "14:07:21 PDT"]
[Termination "Grischuk won by resignation"]

1. e4 {[%clk 0:02:25.1]} 1... c5 {[%clk 0:03:00.6]} 2. Nf3 {[%clk 0:02:23.6]}
2... d6 {[%clk 0:03:01.5]} 3. Bb5+ {[%clk 0:02:23.9]} 3... Nd7 {[%clk
0:03:00.8]} 4. O-O {[%clk 0:02:22.2]} 4... Nf6 {[%clk 0:03:00.2]} 5. Re1 {[%clk
0:02:23]} 5... e6 {[%clk 0:02:51.8]} 6. c3 {[%clk 0:02:23.6]} 6... Be7 {[%clk
0:02:44.4]} 7. d4 {[%clk 0:02:24]} 7... O-O {[%clk 0:02:42.4]} 8. Nbd2 {[%clk
0:02:25.1]} 8... a6 {[%clk 0:02:37.3]} 9. Bd3 {[%clk 0:02:25]} 9... cxd4 {[%clk
0:02:27.1]} 10. cxd4 {[%clk 0:02:26.1]} 10... e5 {[%clk 0:02:25.7]} 11. d5
{[%clk 0:02:26.2]} 11... Nc5 {[%clk 0:02:13.7]} 12. Bc2 {[%clk 0:02:27.2]} 12...
a5 {[%clk 0:02:03.2]} 13. Nf1 {[%clk 0:02:26.6]} 13... b5 {[%clk 0:01:52.7]} 14.
Ng3 {[%clk 0:02:27.6]} 14... g6 {[%clk 0:01:48.9]} 15. Be3 {[%clk 0:02:27.8]}
15... Nfd7 {[%clk 0:01:42.3]} 16. Qd2 {[%clk 0:02:28.7]} 16... Bf6 {[%clk
0:01:27.5]} 17. h4 {[%clk 0:02:28.2]} 17... Nb6 {[%clk 0:01:05.3]} 18. b3 {[%clk
0:02:23.5]} 18... Bg4 {[%clk 0:01:05.4]} 19. Nh2 {[%clk 0:02:23.5]} 19... Bd7
{[%clk 0:01:02.2]} 20. h5 {[%clk 0:02:25]} 20... b4 {[%clk 0:00:59.2]} 21. Nf3
{[%clk 0:02:22.6]} 21... Bg4 {[%clk 0:00:57.9]} 22. hxg6 {[%clk 0:02:23.3]}
22... fxg6 {[%clk 0:00:45.3]} 23. Bd1 {[%clk 0:02:23.9]} 23... a4 {[%clk
0:00:33]} 24. Rb1 {[%clk 0:02:23.9]} 24... axb3 {[%clk 0:00:33.3]} 25. axb3
{[%clk 0:02:25.8]} 25... Nbd7 {[%clk 0:00:26.6]} 26. Qxb4 {[%clk 0:02:24.7]}
26... Nd3 {[%clk 0:00:24.1]} 27. Qxd6 {[%clk 0:02:11]} 27... Nxe1 {[%clk
0:00:24.1]} 28. Nxe1 {[%clk 0:02:11.6]} 28... Bxd1 {[%clk 0:00:21.5]} 29. Rxd1
{[%clk 0:02:13.5]} 29... Qe7 {[%clk 0:00:18]} 30. Qe6+ {[%clk 0:01:51.2]} 30...
Kg7 {[%clk 0:00:14.5]} 31. Nd3 {[%clk 0:01:49.7]} 31... Rab8 {[%clk 0:00:12]}
32. b4 {[%clk 0:01:48.3]} 32... Rfc8 {[%clk 0:00:11.7]} 33. Qg4 {[%clk
0:01:47.2]} 33... Kh8 {[%clk 0:00:11.3]} 34. Nc5 {[%clk 0:01:45.6]} 34... Nxc5
{[%clk 0:00:11]} 35. bxc5 {[%clk 0:01:47.1]} 35... Rd8 {[%clk 0:00:04.6]} 36. c6
{[%clk 0:01:34.3]} 36... Qd6 {[%clk 0:00:03.3]} 37. Rc1 {[%clk 0:01:34.9]} 37...
Rb5 {[%clk 0:00:03.7]} 38. c7 {[%clk 0:01:35]} 1-0

[Event "*** Titled Tuesday Blitz"]
[Site "Chess.com"]
[Date "2019.04.02"]
[Round "1"]
[White "Kirill_Klukin"]
[Black "INLOVEWITHF"]
[Result "1-0"]
[WhiteElo "2603"]
[BlackElo "2265"]
[TimeControl "180+2"]
[EndTime "14:07:26 PDT"]
[Termination "Kirill_Klukin won by resignation"]

1. Nf3 {[%clk 0:03:01.3]} 1... Nf6 {[%clk 0:03:00.1]} 2. d4 {[%clk 0:03:01.8]}
2... d5 {[%clk 0:02:59.1]} 3. c4 {[%clk 0:03:01.4]} 3... c6 {[%clk 0:02:59.9]}
4. e3 {[%clk 0:03:00.8]} 4... Bf5 {[%clk 0:02:55.7]} 5. Nc3 {[%clk 0:03:00.7]}
5... e6 {[%clk 0:02:56]} 6. Nh4 {[%clk 0:03:01.4]} 6... Bg4 {[%clk 0:02:56.6]}
7. Qb3 {[%clk 0:03:02.2]} 7... Qb6 {[%clk 0:02:52.8]} 8. h3 {[%clk 0:03:02]}
8... Bh5 {[%clk 0:02:52.8]} 9. g4 {[%clk 0:03:03]} 9... Bg6 {[%clk 0:02:54]} 10.
Nxg6 {[%clk 0:03:04]} 10... hxg6 {[%clk 0:02:54.8]} 11. Bg2 {[%clk 0:03:05.4]}
11... Nbd7 {[%clk 0:02:54]} 12. Bd2 {[%clk 0:03:06.2]} 12... Qc7 {[%clk
0:02:41.8]} 13. Rc1 {[%clk 0:03:06.5]} 13... Qb6 {[%clk 0:02:34.6]} 14. Na4
{[%clk 0:03:05.6]} 14... Qxb3 {[%clk 0:02:34.1]} 15. axb3 {[%clk 0:03:07.5]}
15... Bd6 {[%clk 0:02:29.4]} 16. Ke2 {[%clk 0:03:07.5]} 16... Ke7 {[%clk
0:02:25.3]} 17. f3 {[%clk 0:03:01.7]} 17... Rac8 {[%clk 0:02:19.1]} 18. e4
{[%clk 0:02:59.6]} 18... b5 {[%clk 0:02:19.5]} 19. Nc3 {[%clk 0:02:55.6]} 19...
b4 {[%clk 0:02:06.6]} 20. Na2 {[%clk 0:02:50.9]} 20... e5 {[%clk 0:02:01.6]} 21.
exd5 {[%clk 0:02:28.9]} 21... exd4 {[%clk 0:01:36.4]} 22. Nxb4 {[%clk
0:02:06.4]} 22... Bxb4 {[%clk 0:01:36.6]} 23. Bxb4+ {[%clk 0:02:06.9]} 23... c5
{[%clk 0:01:38.1]} 24. Bd2 {[%clk 0:02:07.1]} 24... Kd6 {[%clk 0:01:39.1]} 25.
Bf4+ {[%clk 0:02:07.2]} 25... Ne5 {[%clk 0:01:39]} 26. Kd2 {[%clk 0:02:06.2]}
26... Nd7 {[%clk 0:01:38]} 27. Rhe1 {[%clk 0:02:06.3]} 27... f6 {[%clk 0:01:39]}
28. Ra1 {[%clk 0:02:04]} 28... Rb8 {[%clk 0:01:31.7]} 29. Kc2 {[%clk 0:01:56.4]}
29... g5 {[%clk 0:01:23.6]} 30. Bg3 {[%clk 0:01:48.8]} 30... Rb6 {[%clk
0:01:14]} 31. Rxa7 {[%clk 0:01:35.9]} 31... Rhb8 {[%clk 0:01:15.5]} 32. Ra3
{[%clk 0:01:36.8]} 32... Nf8 {[%clk 0:01:14.4]} 33. f4 {[%clk 0:01:37.3]} 33...
gxf4 {[%clk 0:01:13.7]} 34. Bxf4 {[%clk 0:01:38.4]} 34... g5 {[%clk 0:01:14.8]}
35. Bxe5+ {[%clk 0:01:37.9]} 35... fxe5 {[%clk 0:01:16.7]} 36. Be4 {[%clk
0:01:38.9]} 36... Nd7 {[%clk 0:01:10.8]} 37. Rf1 {[%clk 0:01:40]} 37... Rf8
{[%clk 0:01:10.1]} 38. Rxf8 {[%clk 0:01:35.3]} 38... Nxf8 {[%clk 0:01:12]} 39.
Bf5 {[%clk 0:01:35.7]} 39... Rb7 {[%clk 0:00:53.6]} 40. Ra8 {[%clk 0:01:35.1]}
40... Ke7 {[%clk 0:00:52.6]} 41. Rc8 {[%clk 0:01:29.2]} 41... Nd7 {[%clk
0:00:48.2]} 42. b4 {[%clk 0:01:20.7]} 42... cxb4 {[%clk 0:00:40.6]} 43. c5
{[%clk 0:01:18.9]} 43... Rb5 {[%clk 0:00:40.8]} 44. d6+ {[%clk 0:01:15.4]} 1-0

[Event "*** Titled Tuesday Blitz"]
[Site "Chess.com"]
[Date "2019.04.02"]
[Round "1"]
[White "TheBigBoss04"]
[Black "norwaytoadog"]
[Result "1-0"]
[WhiteElo "2552"]
[BlackElo "2216"]
[TimeControl "180+2"]
[EndTime "14:07:30 PDT"]
[Termination "TheBigBoss04 won by resignation"]

1. d4 {[%clk 0:03:01.4]} 1... Nf6 {[%clk 0:03:00]} 2. c4 {[%clk 0:03:01.8]} 2...
e6 {[%clk 0:03:01.1]} 3. Nc3 {[%clk 0:03:02.7]} 3... Bb4 {[%clk 0:03:01.8]} 4.
e3 {[%clk 0:03:04.2]} 4... O-O {[%clk 0:03:01]} 5. Bd3 {[%clk 0:03:05.1]} 5...
c5 {[%clk 0:03:00.3]} 6. Nf3 {[%clk 0:03:06.2]} 6... Bxc3+ {[%clk 0:02:58.5]} 7.
bxc3 {[%clk 0:03:06.9]} 7... Nc6 {[%clk 0:02:59.3]} 8. O-O {[%clk 0:02:52.3]}
8... d6 {[%clk 0:03:00.2]} 9. e4 {[%clk 0:02:53.4]} 9... e5 {[%clk 0:03:01.2]}
10. d5 {[%clk 0:02:55]} 10... Ne7 {[%clk 0:03:01.9]} 11. Nh4 {[%clk 0:02:52.8]}
11... h6 {[%clk 0:03:01.2]} 12. h3 {[%clk 0:02:44.5]} 12... Ng6 {[%clk
0:02:51.2]} 13. Nf5 {[%clk 0:02:42.2]} 13... Bxf5 {[%clk 0:02:24.8]} 14. exf5
{[%clk 0:02:42.9]} 14... Nf4 {[%clk 0:02:18.3]} 15. Bxf4 {[%clk 0:02:42.9]}
15... exf4 {[%clk 0:02:18.9]} 16. Qf3 {[%clk 0:02:44.5]} 16... Qa5 {[%clk
0:02:09]} 17. Rfc1 {[%clk 0:02:27.6]} 17... Nd7 {[%clk 0:01:57.7]} 18. Qxf4
{[%clk 0:02:24.7]} 18... Ne5 {[%clk 0:01:57.7]} 19. f6 {[%clk 0:02:13.2]} 19...
Nxd3 {[%clk 0:01:16.7]} 20. Qg3 {[%clk 0:02:13.7]} 20... g6 {[%clk 0:01:15.8]}
21. Qxd3 {[%clk 0:02:14.4]} 21... Rfe8 {[%clk 0:01:06]} 22. Qg3 {[%clk
0:02:14.5]} 22... Qd8 {[%clk 0:00:53.4]} 23. Qf4 {[%clk 0:02:14.7]} 23... Re5
{[%clk 0:00:42.8]} 24. Re1 {[%clk 0:02:14.1]} 24... Rf5 {[%clk 0:00:34]} 25.
Qxh6 {[%clk 0:02:12.6]} 25... Qxf6 {[%clk 0:00:34]} 26. Qe3 {[%clk 0:02:14.3]}
26... Kg7 {[%clk 0:00:30.9]} 27. Qe7 {[%clk 0:02:06.7]} 27... Qxc3 {[%clk
0:00:29.6]} 28. Qxd6 {[%clk 0:02:04.8]} 28... Qd4 {[%clk 0:00:30.3]} 29. Qg3
{[%clk 0:02:02]} 29... Qxc4 {[%clk 0:00:30.1]} 30. d6 {[%clk 0:02:00.4]} 30...
Rd8 {[%clk 0:00:30.5]} 31. Rac1 {[%clk 0:02:00.3]} 31... Qxa2 {[%clk 0:00:29.2]}
32. Qc3+ {[%clk 0:01:52]} 32... Kh7 {[%clk 0:00:29.5]} 33. Rc2 {[%clk
0:01:37.2]} 33... Qd5 {[%clk 0:00:29.5]} 34. Rd2 {[%clk 0:01:38.4]} 34... Qc6
{[%clk 0:00:27.3]} 35. Red1 {[%clk 0:01:28.7]} 35... b5 {[%clk 0:00:26.3]} 36.
Qg3 {[%clk 0:01:23]} 36... c4 {[%clk 0:00:24.5]} 37. Qh4+ {[%clk 0:01:23.9]}
37... Kg7 {[%clk 0:00:24]} 38. Qxd8 {[%clk 0:01:25.5]} 38... Rg5 {[%clk
0:00:23.9]} 39. Qxg5 {[%clk 0:01:26.1]} 39... c3 {[%clk 0:00:24.7]} 40. d7
{[%clk 0:01:25.3]} 40... cxd2 {[%clk 0:00:24.5]} 41. d8=Q {[%clk 0:01:26.5]} 1-0

[Event "*** Titled Tuesday Blitz"]
[Site "Chess.com"]
[Date "2019.04.02"]
[Round "1"]
[White "Koksik_13"]
[Black "gonzaga23"]
[Result "1-0"]
[WhiteElo "2668"]
[BlackElo "2352"]
[TimeControl "180+2"]
[EndTime "14:07:31 PDT"]
[Termination "Koksik_13 won by resignation"]

1. e4 {[%clk 0:02:58.1]} 1... c6 {[%clk 0:03:01]} 2. d4 {[%clk 0:02:58.9]} 2...
d5 {[%clk 0:03:02.1]} 3. Nc3 {[%clk 0:03:00.8]} 3... dxe4 {[%clk 0:03:03.3]} 4.
Nxe4 {[%clk 0:03:01.3]} 4... Nf6 {[%clk 0:03:05]} 5. Ng3 {[%clk 0:03:00.8]} 5...
e5 {[%clk 0:03:01.5]} 6. Nf3 {[%clk 0:02:59.8]} 6... exd4 {[%clk 0:02:40.2]} 7.
Bc4 {[%clk 0:03:00.3]} 7... Bb4+ {[%clk 0:02:38.9]} 8. Bd2 {[%clk 0:02:45.1]}
8... Qe7+ {[%clk 0:02:39.2]} 9. Ne2 {[%clk 0:02:35.2]} 9... O-O {[%clk
0:02:33.7]} 10. O-O {[%clk 0:02:25.5]} 10... Bxd2 {[%clk 0:02:29]} 11. Qxd2
{[%clk 0:02:25.3]} 11... c5 {[%clk 0:02:27.6]} 12. Rfe1 {[%clk 0:02:19.7]} 12...
Qc7 {[%clk 0:02:25.5]} 13. c3 {[%clk 0:02:15.6]} 13... dxc3 {[%clk 0:02:24.4]}
14. Nxc3 {[%clk 0:02:17.5]} 14... a6 {[%clk 0:00:35.2]} 15. a4 {[%clk
0:02:08.4]} 15... Nc6 {[%clk 0:00:29.8]} 16. Rad1 {[%clk 0:02:07.5]} 16... Bg4
{[%clk 0:00:22]} 17. Qg5 {[%clk 0:02:00.5]} 17... Bxf3 {[%clk 0:00:21]} 18. gxf3
{[%clk 0:02:02.4]} 18... Nd4 {[%clk 0:00:09.1]} 19. Qg2 {[%clk 0:01:59.9]} 19...
Qf4 {[%clk 0:00:09.2]} 20. Rd3 {[%clk 0:01:55.8]} 20... Rfe8 {[%clk 0:00:10]}
21. Red1 {[%clk 0:01:54.6]} 21... Rad8 {[%clk 0:00:09.3]} 22. Kh1 {[%clk
0:01:52.5]} 22... h6 {[%clk 0:00:08]} 23. Rg1 {[%clk 0:01:47.1]} 23... g5 {[%clk
0:00:08.3]} 24. Qh3 {[%clk 0:01:26.5]} 24... Nf5 {[%clk 0:00:08.5]} 25. Nd5
{[%clk 0:01:20.7]} 25... Nxd5 {[%clk 0:00:08.7]} 26. Bxd5 {[%clk 0:01:20.9]}
26... Nh4 {[%clk 0:00:09.3]} 27. Rgd1 {[%clk 0:01:19.2]} 27... Rd6 {[%clk
0:00:08.6]} 28. Qg3 {[%clk 0:01:13.3]} 28... Red8 {[%clk 0:00:08.1]} 29. Qxf4
{[%clk 0:01:14.2]} 29... gxf4 {[%clk 0:00:08.3]} 30. Bxf7+ {[%clk 0:01:14.5]}
30... Kxf7 {[%clk 0:00:10.2]} 31. Rxd6 {[%clk 0:01:16.4]} 31... Rxd6 {[%clk
0:00:11.7]} 32. Rxd6 {[%clk 0:01:18.3]} 32... Nxf3 {[%clk 0:00:12.9]} 33. Rd7+
{[%clk 0:01:19.6]} 33... Ke6 {[%clk 0:00:11]} 34. Rxb7 {[%clk 0:01:21.5]} 34...
Nd2 {[%clk 0:00:11.6]} 35. Rb6+ {[%clk 0:01:22.6]} 35... Kd5 {[%clk 0:00:10.8]}
36. Rxa6 {[%clk 0:01:23.9]} 1-0